[Event "44th Chess Olympiad Open 2022"]
[Site "Chennai"]
[Date "2022.08.08"]
[Round "10.33"]
[White "Laylo, Darwin"]
[Black "Giron Chavez David Emanuel"]
[Result "1-0"]
[WhiteElo "2432"]
[BlackElo "2115"]
[Annotator "RC"]
[PlyCount "155"]
[EventDate "2022.??.??"]
[TimeControl "60"]

1. c4 {[%emt 0:00:05]} Nf6 {[%emt 0:00:10]} 2. Nc3 {[%emt 0:00:05]} e5 {
[%emt 0:00:05]} 3. g3 {[%emt 0:00:38]} Bb4 {[%emt 0:00:52]} 4. Bg2 {[%emt 0:00:
00]} O-O {[%emt 0:01:09]} 5. e4 {[%emt 0:01:44]} Nc6 {[%emt 0:01:50]} 6. Nge2 {
[%emt 0:00:30]} d6 {[%emt 0:01:24]} 7. O-O {[%emt 0:00:17]} Bc5 {[%emt 0:06:10]
} 8. d3 {[%emt 0:00:22]} h6 {[%emt 0:01:02]} 9. h3 {[%emt 0:01:20]} Nd4 {
[%emt 0:07:33]} 10. Kh2 {[%emt 0:01:20]} c6 {[%emt 0:01:12]} 11. Nxd4 {[%emt 0:
00:00]} Bxd4 {[%emt 0:00:26]} 12. Ne2 {[%emt 0:06:34]} Bc5 {[%emt 0:08:49]} 13.
d4 {[%emt 0:10:05]} exd4 {[%emt 0:00:24]} 14. Nxd4 {[%emt 0:00:01]} Re8 {
[%emt 0:00:11]} 15. Nb3 {[%emt 0:00:22]} Qb6 {[%emt 0:19:27]} 16. Qc2 {[%emt 0:
00:00]} Be6 {[%emt 0:04:33]} 17. Bf4 {[%emt 0:05:37]} Rad8 {[%emt 0:00:26]} 18.
Rac1 {[%emt 0:05:47]} a5 {[%emt 0:01:00]} 19. Nxc5 {[%emt 0:08:34]} Qxc5 {
[%emt 0:00:09]} 20. Be3 {[%emt 0:01:00]} Qh5 {[%emt 0:02:29]} 21. Bb6 {[%emt 0:
00:00]} Rd7 {[%emt 0:26:09]} 22. Bd4 {[%emt 0:08:08]} Ng4+ {[%emt 0:05:40]} 23.
Kg1 {[%emt 0:00:10]} Ne5 {[%emt 0:00:27]} 24. g4 {[%emt 0:06:09]} Qh4 {[%emt 0:
00:00]} 25. f4 {[%emt 0:00:50]} Bxc4 {[%emt 0:00:54]} 26. fxe5 {[%emt 0:06:38]}
Bxf1 {[%emt 0:00:14]} 27. Rxf1 {[%emt 0:00:02]} dxe5 {[%emt 0:00:21]} 28. Bc3 {
[%emt 0:00:02]} Qd8 {[%emt 0:01:25]} 29. Qa4 {[%emt 0:00:34]} b5 {[%emt 0:00:
00]} 30. Qxa5 {[%emt 0:03:04]} Qxa5 {[%emt 0:00:06]} 31. Bxa5 {[%emt 0:00:02]}
Ra7 {[%emt 0:01:01]} 32. b4 {[%emt 0:00:22]} Re6 {[%emt 0:01:16]} 33. Rc1 {
[%emt 0:01:30]} Rd7 {[%emt 0:00:15]} 34. Rc2 {[%emt 0:04:37]} Rd4 {[%emt 0:00:
00]} 35. Kf2 {[%emt 0:01:16]} Red6 {[%emt 0:01:47]} 36. Ke2 {[%emt 0:00:24]} f6
{[%emt 0:01:31]} 37. Bb6 {[%emt 0:02:15]} Rc4 {[%emt 0:01:06]} 38. Rb2 {
[%emt 0:00:19]} Rc1 {[%emt 0:00:50]} 39. Be3 {[%emt 0:00:45]} Ra1 {[%emt 0:00:
00]} 40. Rc2 {[%emt 0:00:41]} Rd8 {[%emt 0:02:02]} 41. Bd2 {[%emt 0:33:33]} Rd6
{[%emt 0:06:34]} 42. h4 {[%emt 0:00:00]} g5 {[%emt 0:00:58]} 43. h5 {[%emt 0:
00:00]} Kf7 {[%emt 0:00:08]} 44. Bf3 {[%emt 0:00:00]} Ke8 {[%emt 0:09:59]} 45.
Be3 {[%emt 0:00:00]} Rd8 {[%emt 0:05:34]} 46. Kf2 {[%emt 0:00:00]} Ra8 {
[%emt 0:01:34]} 47. Rxc6 {[%emt 0:00:00]} R8xa2+ {[%emt 0:00:07]} 48. Kg3 {
[%emt 0:00:00]} Ra3 {[%emt 0:00:03]} 49. Bb6 {[%emt 0:00:00]} Kf7 {[%emt 0:00:
00]} 50. Rc7+ {[%emt 0:00:00]} Kg8 {[%emt 0:00:10]} 51. Rc2 {[%emt 0:00:00]}
Rb3 {[%emt 0:04:31]} 52. Bc5 {[%emt 0:00:00]} Raa3 {[%emt 0:00:13]} 53. Rf2 {
[%emt 0:00:00]} Kf7 {[%emt 0:02:56]} 54. Kg2 {[%emt 0:00:00]} Ke6 {[%emt 0:00:
00]} 55. Be2 {[%emt 0:00:00]} Rg3+ {[%emt 0:00:02]} 56. Kh2 {[%emt 0:00:00]}
Rh3+ {[%emt 0:00:08]} 57. Kg1 {[%emt 0:00:00]} Rhg3+ {[%emt 0:01:35]} 58. Rg2 {
[%emt 0:00:00]} Rxg2+ {[%emt 0:01:48]} 59. Kxg2 {[%emt 0:00:00]} Ra2 {[%emt 0:
00:00]} 60. Kf3 {[%emt 0:00:00]} Ra3+ {[%emt 0:00:10]} 61. Kf2 {[%emt 0:00:15]}
Ra2 {[%emt 0:00:06]} 62. Ke3 {[%emt 0:00:28]} Ra3+ {[%emt 0:00:18]} 63. Bd3 {
[%emt 0:00:34]} Kd7 {[%emt 0:02:42]} 64. Kd2 {[%emt 0:00:52]} Kc6 {[%emt 0:00:
00]} 65. Bf8 {[%emt 0:00:03]} Ra2+ {[%emt 0:00:05]} 66. Bc2 {[%emt 0:00:15]}
Kd7 {[%emt 0:00:42]} 67. Bxh6 {[%emt 0:00:26]} Ke7 {[%emt 0:00:39]} 68. Bg7 {
[%emt 0:00:02]} Kf7 {[%emt 0:00:17]} 69. h6 {[%emt 0:02:14]} Ra3 {[%emt 0:00:
00]} 70. Bd3 {[%emt 0:00:50]} Rb3 {[%emt 0:00:30]} 71. Bxb5 {[%emt 0:00:18]}
Rxb4 {[%emt 0:00:16]} 72. Be8+ {[%emt 0:00:29]} Kg8 {[%emt 0:00:08]} 73. Bxf6 {
[%emt 0:00:23]} Kh7 {[%emt 0:00:12]} 74. Bxg5 {[%emt 0:00:33]} Rxe4 {[%emt 0:
00:00]} 75. Bh5 {[%emt 0:00:20]} Ra4 {[%emt 0:01:02]} 76. Be3 {[%emt 0:00:13]}
e4 {[%emt 0:00:36]} 77. g5 {[%emt 0:00:12]} Ra2+ {[%emt 0:00:06]} 78. Kc3 {
[%emt 0:00:03]} 1-0

[Event "44th Chess Olympiad Open 2022"]
[Site "Chennai"]
[Date "2022.08.08"]
[Round "10.33"]
[White "Juarez Flores, Carlos A."]
[Black "Paragua, Mark"]
[Result "0-1"]
[WhiteElo "2335"]
[BlackElo "2461"]
[Annotator "RC"]
[PlyCount "64"]
[EventDate "2022.??.??"]
[TimeControl "60"]

1. d4 {[%emt 0:00:04]} d5 {[%emt 0:00:09]} 2. c4 {[%emt 0:00:13]} c6 {[%emt 0:
00:00]} 3. Nf3 {[%emt 0:00:17]} Nf6 {[%emt 0:00:09]} 4. e3 {[%emt 0:01:36]} Bf5
{[%emt 0:00:52]} 5. Qb3 {[%emt 0:01:36]} Qb6 {[%emt 0:02:27]} 6. Nc3 {[%emt 0:
00:00]} e6 {[%emt 0:00:53]} 7. c5 {[%emt 0:02:51]} Qc7 {[%emt 0:00:34]} 8. Nh4
{[%emt 0:00:10]} Bg6 {[%emt 0:02:47]} 9. Nxg6 {[%emt 0:02:32]} hxg6 {[%emt 0:
00:00]} 10. h3 {[%emt 0:00:10]} Nbd7 {[%emt 0:02:52]} 11. Bd2 {[%emt 0:02:07]}
Be7 {[%emt 0:02:00]} 12. Be2 {[%emt 0:00:57]} g5 {[%emt 0:02:11]} 13. O-O-O {
[%emt 0:01:47]} b6 {[%emt 0:00:13]} 14. cxb6 {[%emt 0:01:18]} axb6 {[%emt 0:00:
00]} 15. Kb1 {[%emt 0:08:17]} b5 {[%emt 0:04:12]} 16. Rc1 {[%emt 0:02:14]} Qa7
{[%emt 0:02:15]} 17. Bxb5 {[%emt 0:00:23]} Rb8 {[%emt 0:00:11]} 18. Rc2 {
[%emt 0:08:56]} Qa8 {[%emt 0:16:04]} 19. Nxd5 {[%emt 0:05:10]} cxd5 {[%emt 0:
00:00]} 20. f3 {[%emt 0:08:09]} O-O {[%emt 0:04:44]} 21. Qd3 {[%emt 0:02:26]}
Nb6 {[%emt 0:03:34]} 22. Rc7 {[%emt 0:04:02]} Nc4 {[%emt 0:07:04]} 23. Bxc4 {
[%emt 0:01:53]} Bd6 {[%emt 0:11:01]} 24. Bxd5 {[%emt 0:00:35]} Nxd5 {[%emt 0:
00:00]} 25. Rc2 {[%emt 0:01:12]} Bb4 {[%emt 0:00:36]} 26. e4 {[%emt 0:01:40]}
Nf4 {[%emt 0:05:03]} 27. Bxf4 {[%emt 0:00:42]} gxf4 {[%emt 0:00:04]} 28. Rhc1 {
[%emt 0:04:04]} Rfd8 {[%emt 0:00:35]} 29. Qc4 {[%emt 0:09:11]} Be7 {[%emt 0:00:
00]} 30. Rd1 {[%emt 0:06:22]} Qa7 {[%emt 0:03:54]} 31. Qc7 {[%emt 0:05:29]} Rb7
{[%emt 0:00:47]} 32. Qxf4 {[%emt 0:00:28]} Ra8 {[%emt 0:00:11]} 0-1

[Event "44th Chess Olympiad Open 2022"]
[Site "Chennai"]
[Date "2022.08.08"]
[Round "10.33"]
[White "Galvez Dastin, Eduardo"]
[Black "Gomez, John Paul"]
[Result "0-1"]
[WhiteElo "2152"]
[BlackElo "2451"]
[Annotator "RC"]
[PlyCount "66"]
[EventDate "2022.??.??"]
[TimeControl "60"]

1. d4 {[%emt 0:00:06]} d5 {[%emt 0:00:13]} 2. c4 {[%emt 0:00:07]} c6 {[%emt 0:
00:00]} 3. Nf3 {[%emt 0:00:03]} Nf6 {[%emt 0:00:09]} 4. Nc3 {[%emt 0:00:04]}
dxc4 {[%emt 0:00:10]} 5. a4 {[%emt 0:00:18]} Bf5 {[%emt 0:00:12]} 6. Nh4 {
[%emt 0:00:00]} Bc8 {[%emt 0:01:51]} 7. e3 {[%emt 0:03:21]} e5 {[%emt 0:00:17]}
8. Bxc4 {[%emt 0:01:16]} exd4 {[%emt 0:00:08]} 9. exd4 {[%emt 0:00:09]} Be7 {
[%emt 0:00:11]} 10. O-O {[%emt 0:00:40]} O-O {[%emt 0:00:16]} 11. Nf3 {[%emt 0:
00:00]} Na6 {[%emt 0:04:56]} 12. Ne5 {[%emt 0:06:17]} Nb4 {[%emt 0:00:32]} 13.
Qb3 {[%emt 0:03:22]} Nfd5 {[%emt 0:01:18]} 14. Ne4 {[%emt 0:33:29]} Bf5 {
[%emt 0:06:18]} 15. Re1 {[%emt 0:02:14]} Kh8 {[%emt 0:01:35]} 16. a5 {[%emt 0:
00:00]} f6 {[%emt 0:02:59]} 17. Nf3 {[%emt 0:03:41]} b5 {[%emt 0:02:15]} 18.
Bf1 {[%emt 0:06:16]} Bg4 {[%emt 0:05:37]} 19. Be2 {[%emt 0:07:34]} Bf5 {
[%emt 0:04:39]} 20. Bf1 {[%emt 0:00:09]} g5 {[%emt 0:03:08]} 21. Bd2 {[%emt 0:
00:00]} g4 {[%emt 0:03:15]} 22. Nh4 {[%emt 0:03:45]} Bxe4 {[%emt 0:00:31]} 23.
Rxe4 {[%emt 0:00:06]} f5 {[%emt 0:00:35]} 24. Re6 {[%emt 0:13:15]} Bxh4 {
[%emt 0:07:58]} 25. Bxb4 {[%emt 0:00:07]} Nxb4 {[%emt 0:01:10]} 26. Qxb4 {
[%emt 0:00:08]} Bf6 {[%emt 0:00:51]} 27. Rxc6 {[%emt 0:01:01]} Qxd4 {[%emt 0:
00:00]} 28. Qxb5 {[%emt 0:03:58]} Rab8 {[%emt 0:04:43]} 29. Qc5 {[%emt 0:04:00]
} f4 {[%emt 0:07:30]} 30. Ra3 {[%emt 0:02:04]} Qxc5 {[%emt 0:00:44]} 31. Rxc5 {
[%emt 0:00:03]} Be7 {[%emt 0:00:25]} 32. Rc7 {[%emt 0:00:05]} Bxa3 {[%emt 0:00:
00]} 33. bxa3 {[%emt 0:00:01]} Rb1 {[%emt 0:00:30]} 0-1

[Event "44th Chess Olympiad Open 2022"]
[Site "Chennai"]
[Date "2022.08.08"]
[Round "10.34"]
[White "Nyysti, Sampsa"]
[Black "Okas, Walter"]
[Result "1/2-1/2"]
[WhiteElo "2363"]
[BlackElo "2191"]
[Annotator "RC"]
[PlyCount "99"]
[EventDate "2022.??.??"]
[TimeControl "60"]

1. e4 {[%emt 0:00:03]} c6 {[%emt 0:00:13]} 2. d4 {[%emt 0:00:08]} d5 {[%emt 0:
00:00]} 3. e5 {[%emt 0:00:07]} Bf5 {[%emt 0:02:33]} 4. c4 {[%emt 0:00:10]} e6 {
[%emt 0:01:00]} 5. Nc3 {[%emt 0:00:06]} Nd7 {[%emt 0:02:10]} 6. Nf3 {[%emt 0:
00:00]} Bb4 {[%emt 0:09:36]} 7. Qb3 {[%emt 0:03:15]} Bxc3+ {[%emt 0:06:21]} 8.
bxc3 {[%emt 0:01:13]} Qb6 {[%emt 0:05:12]} 9. Be2 {[%emt 0:21:42]} Ne7 {
[%emt 0:04:36]} 10. Qa3 {[%emt 0:01:36]} h6 {[%emt 0:06:06]} 11. O-O {[%emt 0:
00:00]} Qc7 {[%emt 0:05:50]} 12. Be3 {[%emt 0:06:48]} Nb6 {[%emt 0:07:01]} 13.
cxd5 {[%emt 0:05:58]} cxd5 {[%emt 0:09:21]} 14. Bb5+ {[%emt 0:03:36]} Nc6 {
[%emt 0:04:09]} 15. Nh4 {[%emt 0:05:31]} Be4 {[%emt 0:00:52]} 16. f3 {[%emt 0:
00:00]} Bh7 {[%emt 0:00:11]} 17. f4 {[%emt 0:00:13]} a6 {[%emt 0:01:27]} 18.
Bxc6+ {[%emt 0:07:46]} Qxc6 {[%emt 0:00:06]} 19. f5 {[%emt 0:05:58]} Nc4 {
[%emt 0:07:12]} 20. Qc1 {[%emt 0:00:07]} exf5 {[%emt 0:07:56]} 21. Nxf5 {
[%emt 0:00:24]} Bxf5 {[%emt 0:00:21]} 22. Rxf5 {[%emt 0:00:02]} Qe6 {[%emt 0:
00:00]} 23. Rf3 {[%emt 0:00:50]} O-O {[%emt 0:02:36]} 24. Bf2 {[%emt 0:02:17]}
f6 {[%emt 0:00:44]} 25. exf6 {[%emt 0:00:23]} Rxf6 {[%emt 0:00:07]} 26. Rxf6 {
[%emt 0:00:06]} Qxf6 {[%emt 0:00:38]} 27. Qe1 {[%emt 0:00:20]} Rf8 {[%emt 0:00:
00]} 28. Bg3 {[%emt 0:00:46]} Qf5 {[%emt 0:00:31]} 29. Qe2 {[%emt 0:05:35]} Rf7
{[%emt 0:02:42]} 30. Re1 {[%emt 0:00:17]} Kh7 {[%emt 0:01:39]} 31. h3 {[%emt 0:
00:00]} Rf6 {[%emt 0:03:30]} 32. Kh2 {[%emt 0:09:46]} Rb6 {[%emt 0:02:06]} 33.
Rf1 {[%emt 0:01:04]} Qg6 {[%emt 0:00:08]} 34. Rf8 {[%emt 0:06:25]} Rb2 {
[%emt 0:01:38]} 35. Qe7 {[%emt 0:00:28]} Qc2 {[%emt 0:03:40]} 36. Bf2 {[%emt 0:
00:00]} Qe4 {[%emt 0:00:16]} 37. Qd8 {[%emt 0:04:41]} Rxa2 {[%emt 0:01:03]} 38.
Qb8 {[%emt 0:01:14]} Rb2 {[%emt 0:00:48]} 39. Rh8+ {[%emt 0:00:11]} Kg6 {
[%emt 0:00:04]} 40. Qg3+ {[%emt 0:00:15]} Kf7 {[%emt 0:00:11]} 41. Rc8 {
[%emt 0:30:30]} g5 {[%emt 0:33:17]} 42. Kh1 {[%emt 0:00:00]} Qf4 {[%emt 0:00:
00]} 43. Qd3 {[%emt 0:00:00]} Qe4 {[%emt 0:00:00]} 44. Qg3 {[%emt 0:00:00]}
Rb1+ {[%emt 0:00:00]} 45. Bg1 {[%emt 0:00:00]} Qe3 {[%emt 0:00:00]} 46. Qc7+ {
[%emt 0:00:00]} Kg6 {[%emt 0:00:00]} 47. Rg8+ {[%emt 0:00:00]} Kh5 {[%emt 0:00:
00]} 48. Rxg5+ {[%emt 0:00:00]} Qxg5 {[%emt 0:00:00]} 49. Qf7+ {[%emt 0:00:00]}
Kh4 {[%emt 0:00:00]} 50. Qf2+ {[%emt 0:00:00]} 1/2-1/2

[Event "44th Chess Olympiad Open 2022"]
[Site "Chennai"]
[Date "2022.08.08"]
[Round "10.34"]
[White "Kawuma, Patrick"]
[Black "Sipila, Vilka"]
[Result "0-1"]
[WhiteElo "2270"]
[BlackElo "2416"]
[Annotator "RC"]
[PlyCount "60"]
[EventDate "2022.??.??"]
[TimeControl "60"]

1. c4 {[%emt 0:00:05]} e5 {[%emt 0:00:06]} 2. d3 {[%emt 0:01:19]} g6 {[%emt 0:
00:00]} 3. Nc3 {[%emt 0:01:37]} Bg7 {[%emt 0:00:09]} 4. g3 {[%emt 0:00:04]} Ne7
{[%emt 0:05:06]} 5. Bg2 {[%emt 0:00:06]} O-O {[%emt 0:00:26]} 6. e4 {[%emt 0:
00:00]} d6 {[%emt 0:10:46]} 7. Nge2 {[%emt 0:00:34]} Be6 {[%emt 0:00:19]} 8.
Bg5 {[%emt 0:05:59]} h6 {[%emt 0:04:36]} 9. Be3 {[%emt 0:02:33]} Nbc6 {[%emt 0:
00:00]} 10. Nd5 {[%emt 0:02:22]} Nd4 {[%emt 0:01:20]} 11. Nxd4 {[%emt 0:00:46]}
exd4 {[%emt 0:00:06]} 12. Bd2 {[%emt 0:00:20]} Nxd5 {[%emt 0:07:30]} 13. cxd5 {
[%emt 0:00:25]} Bd7 {[%emt 0:00:08]} 14. O-O {[%emt 0:01:22]} c5 {[%emt 0:00:
00]} 15. dxc6 {[%emt 0:06:57]} bxc6 {[%emt 0:01:18]} 16. b4 {[%emt 0:00:08]} c5
{[%emt 0:07:03]} 17. Qc1 {[%emt 0:24:12]} Bb5 {[%emt 0:04:01]} 18. Bxh6 {
[%emt 0:04:41]} Bxh6 {[%emt 0:04:34]} 19. Qxh6 {[%emt 0:00:03]} Bxd3 {[%emt 0:
00:00]} 20. Rfd1 {[%emt 0:00:12]} c4 {[%emt 0:05:37]} 21. Bf1 {[%emt 0:22:48]}
Bxf1 {[%emt 0:01:47]} 22. Rxd4 {[%emt 0:03:12]} Be2 {[%emt 0:13:28]} 23. Re1 {
[%emt 0:00:39]} Bh5 {[%emt 0:01:32]} 24. e5 {[%emt 0:07:01]} Re8 {[%emt 0:00:
00]} 25. g4 {[%emt 0:07:53]} Qh4 {[%emt 0:00:54]} 26. h3 {[%emt 0:02:58]} Rxe5
{[%emt 0:06:05]} 27. Rxe5 {[%emt 0:02:00]} dxe5 {[%emt 0:00:05]} 28. Rxc4 {
[%emt 0:00:30]} Qxh3 {[%emt 0:00:26]} 29. gxh5 {[%emt 0:00:09]} Rd8 {[%emt 0:
00:00]} 30. Qc1 {[%emt 0:02:10]} Qf3 {[%emt 0:00:12]} 0-1

[Event "44th Chess Olympiad Open 2022"]
[Site "Chennai"]
[Date "2022.08.08"]
[Round "10.34"]
[White "Egesa emmanuel"]
[Black "Koykka, Pekka"]
[Result "0-1"]
[WhiteElo "2152"]
[BlackElo "2361"]
[Annotator "RC"]
[PlyCount "50"]
[EventDate "2022.??.??"]
[TimeControl "60"]

1. d4 {[%emt 0:00:19]} Nf6 {[%emt 0:00:20]} 2. c4 {[%emt 0:01:13]} e6 {[%emt 0:
00:00]} 3. Nf3 {[%emt 0:00:46]} c5 {[%emt 0:00:29]} 4. Nc3 {[%emt 0:06:39]}
cxd4 {[%emt 0:01:05]} 5. Nxd4 {[%emt 0:00:06]} Bb4 {[%emt 0:01:31]} 6. Bd2 {
[%emt 0:06:32]} O-O {[%emt 0:03:34]} 7. e3 {[%emt 0:01:28]} Nc6 {[%emt 0:04:03]
} 8. a3 {[%emt 0:01:43]} Be7 {[%emt 0:06:36]} 9. Nf3 {[%emt 0:03:37]} b6 {
[%emt 0:10:08]} 10. Be2 {[%emt 0:00:57]} Bb7 {[%emt 0:00:10]} 11. O-O {[%emt 0:
00:00]} Rc8 {[%emt 0:02:00]} 12. Rc1 {[%emt 0:04:24]} a6 {[%emt 0:07:13]} 13.
Na4 {[%emt 0:11:39]} d6 {[%emt 0:04:30]} 14. Qb3 {[%emt 0:06:00]} Nd7 {[%emt 0:
00:00]} 15. Rfd1 {[%emt 0:02:45]} Qc7 {[%emt 0:00:49]} 16. Qa2 {[%emt 0:06:18]}
Nce5 {[%emt 0:01:15]} 17. Nxe5 {[%emt 0:04:31]} Nxe5 {[%emt 0:00:17]} 18. b3 {
[%emt 0:00:37]} Bc6 {[%emt 0:02:28]} 19. Nb2 {[%emt 0:01:38]} Qb7 {[%emt 0:00:
00]} 20. Bf1 {[%emt 0:02:07]} Bf3 {[%emt 0:15:43]} 21. Re1 {[%emt 0:00:08]} Qe4
{[%emt 0:10:47]} 22. Bc3 {[%emt 0:03:53]} Rc5 {[%emt 0:17:17]} 23. Na4 {
[%emt 0:09:12]} Bxg2 {[%emt 0:01:05]} 24. Nxc5 {[%emt 0:00:22]} Nf3+ {[%emt 0:
00:00]} 25. Kxg2 {[%emt 0:00:21]} Qg4+ {[%emt 0:00:04]} 0-1

[Event "44th Chess Olympiad Open 2022"]
[Site "Chennai"]
[Date "2022.08.08"]
[Round "10.35"]
[White "Petkov, Momchil"]
[Black "Croad, Nicolas"]
[Result "1-0"]
[WhiteElo "2510"]
[BlackElo "2289"]
[Annotator "RC"]
[PlyCount "81"]
[EventDate "2022.??.??"]
[TimeControl "60"]

1. e4 {[%emt 0:00:10]} e5 {[%emt 0:00:07]} 2. Nf3 {[%emt 0:00:15]} Nc6 {
[%emt 0:00:06]} 3. Bc4 {[%emt 0:00:06]} Bc5 {[%emt 0:00:07]} 4. O-O {[%emt 0:
00:00]} Nf6 {[%emt 0:00:14]} 5. d3 {[%emt 0:00:07]} d6 {[%emt 0:00:29]} 6. c3 {
[%emt 0:00:24]} a5 {[%emt 0:06:03]} 7. Bg5 {[%emt 0:00:26]} h6 {[%emt 0:00:16]}
8. Bh4 {[%emt 0:00:05]} Ba7 {[%emt 0:06:09]} 9. Nbd2 {[%emt 0:00:28]} O-O {
[%emt 0:01:45]} 10. a4 {[%emt 0:01:08]} Qe7 {[%emt 0:03:07]} 11. Re1 {[%emt 0:
00:00]} Be6 {[%emt 0:03:47]} 12. Ra3 {[%emt 0:03:31]} Nb8 {[%emt 0:06:43]} 13.
d4 {[%emt 0:05:28]} Nbd7 {[%emt 0:01:44]} 14. Bd3 {[%emt 0:10:20]} c6 {[%emt 0:
00:00]} 15. Nc4 {[%emt 0:08:20]} Bxc4 {[%emt 0:10:45]} 16. Bxc4 {[%emt 0:00:08]
} Rfe8 {[%emt 0:02:02]} 17. Ba2 {[%emt 0:14:37]} Nf8 {[%emt 0:02:45]} 18. Bg3 {
[%emt 0:03:17]} Ng6 {[%emt 0:00:44]} 19. Nh4 {[%emt 0:01:55]} Nxh4 {[%emt 0:00:
00]} 20. Bxh4 {[%emt 0:00:12]} g5 {[%emt 0:02:10]} 21. Bg3 {[%emt 0:00:05]} Kg7
{[%emt 0:00:26]} 22. Re3 {[%emt 0:12:28]} h5 {[%emt 0:25:52]} 23. h4 {[%emt 0:
00:00]} g4 {[%emt 0:03:26]} 24. Bb1 {[%emt 0:03:07]} Rg8 {[%emt 0:02:19]} 25.
Qd2 {[%emt 0:02:33]} Nd7 {[%emt 0:01:01]} 26. f4 {[%emt 0:02:09]} f6 {[%emt 0:
00:00]} 27. Kh1 {[%emt 0:01:48]} Rgd8 {[%emt 0:01:55]} 28. Re1 {[%emt 0:01:13]}
c5 {[%emt 0:01:21]} 29. Rb3 {[%emt 0:06:37]} cxd4 {[%emt 0:00:47]} 30. Rxb7 {
[%emt 0:00:06]} Rdb8 {[%emt 0:00:15]} 31. Rxb8 {[%emt 0:01:44]} Rxb8 {[%emt 0:
00:00]} 32. Ba2 {[%emt 0:00:13]} Nc5 {[%emt 0:02:29]} 33. cxd4 {[%emt 0:00:29]}
Nb3 {[%emt 0:00:11]} 34. Qd3 {[%emt 0:01:51]} Nxd4 {[%emt 0:00:11]} 35. Qc4 {
[%emt 0:00:05]} Kh6 {[%emt 0:02:41]} 36. fxe5 {[%emt 0:00:28]} fxe5 {[%emt 0:
00:00]} 37. Rf1 {[%emt 0:01:28]} Rf8 {[%emt 0:00:18]} 38. Rxf8 {[%emt 0:00:35]}
Qxf8 {[%emt 0:00:01]} 39. Qc1+ {[%emt 0:00:05]} Kh7 {[%emt 0:01:58]} 40. Qc7+ {
[%emt 0:00:06]} Qg7 {[%emt 0:01:06]} 41. Qxd6 {[%emt 0:30:12]} 1-0

[Event "44th Chess Olympiad Open 2022"]
[Site "Chennai"]
[Date "2022.08.08"]
[Round "10.35"]
[White "Yordanov, Lachezar"]
[Black "Duneas, John"]
[Result "1-0"]
[WhiteElo "2316"]
[BlackElo "2031"]
[Annotator "RC"]
[PlyCount "149"]
[EventDate "2022.??.??"]
[TimeControl "60"]

1. c4 {[%emt 0:00:04]} e6 {[%emt 0:00:24]} 2. d4 {[%emt 0:00:06]} d5 {[%emt 0:
00:00]} 3. Nc3 {[%emt 0:00:15]} Nf6 {[%emt 0:00:18]} 4. Nf3 {[%emt 0:00:19]} c6
{[%emt 0:01:12]} 5. e3 {[%emt 0:00:22]} Nbd7 {[%emt 0:02:33]} 6. Qc2 {[%emt 0:
00:00]} Bd6 {[%emt 0:03:13]} 7. Be2 {[%emt 0:00:33]} O-O {[%emt 0:03:39]} 8. b3
{[%emt 0:01:00]} e5 {[%emt 0:08:01]} 9. cxd5 {[%emt 0:01:10]} cxd5 {[%emt 0:00:
00]} 10. dxe5 {[%emt 0:00:10]} Nxe5 {[%emt 0:00:45]} 11. Nd4 {[%emt 0:02:39]}
a6 {[%emt 0:03:49]} 12. h3 {[%emt 0:02:19]} Bd7 {[%emt 0:03:00]} 13. O-O {
[%emt 0:02:55]} Rc8 {[%emt 0:00:30]} 14. Qb2 {[%emt 0:01:10]} Bb4 {[%emt 0:00:
00]} 15. Bd2 {[%emt 0:02:53]} Qa5 {[%emt 0:04:10]} 16. Nb1 {[%emt 0:01:17]} Nc6
{[%emt 0:15:17]} 17. Bxb4 {[%emt 0:01:53]} Qxb4 {[%emt 0:00:33]} 18. Nf3 {
[%emt 0:01:42]} Bf5 {[%emt 0:01:50]} 19. Rd1 {[%emt 0:00:43]} Rfd8 {[%emt 0:00:
00]} 20. a3 {[%emt 0:00:54]} Qb6 {[%emt 0:07:02]} 21. Nc3 {[%emt 0:02:03]} Be4
{[%emt 0:03:32]} 22. Rac1 {[%emt 0:01:04]} Na5 {[%emt 0:05:49]} 23. Nd4 {
[%emt 0:01:31]} Qd6 {[%emt 0:04:05]} 24. Nxe4 {[%emt 0:14:44]} Nxe4 {[%emt 0:
00:00]} 25. Rxc8 {[%emt 0:00:11]} Rxc8 {[%emt 0:00:25]} 26. Nf5 {[%emt 0:00:06]
} Qf8 {[%emt 0:02:22]} 27. Rxd5 {[%emt 0:00:50]} Nc6 {[%emt 0:00:45]} 28. Rd7 {
[%emt 0:01:45]} Nc5 {[%emt 0:01:50]} 29. Rd1 {[%emt 0:00:23]} Ne6 {[%emt 0:00:
00]} 30. Bf3 {[%emt 0:00:53]} Rd8 {[%emt 0:00:56]} 31. Rxd8 {[%emt 0:00:30]}
Ncxd8 {[%emt 0:00:57]} 32. b4 {[%emt 0:00:13]} g6 {[%emt 0:03:27]} 33. Ng3 {
[%emt 0:00:14]} f6 {[%emt 0:00:21]} 34. Bd5 {[%emt 0:00:17]} Kg7 {[%emt 0:00:
00]} 35. Ne4 {[%emt 0:00:14]} Nc7 {[%emt 0:00:40]} 36. Bb3 {[%emt 0:00:32]} Qe7
{[%emt 0:00:37]} 37. Nc5 {[%emt 0:00:10]} b6 {[%emt 0:01:48]} 38. Nd3 {[%emt 0:
00:00]} Qd6 {[%emt 0:00:46]} 39. Nf4 {[%emt 0:00:14]} Nde6 {[%emt 0:00:51]} 40.
Ne2 {[%emt 0:01:42]} Qd3 {[%emt 0:01:58]} 41. Qa2 {[%emt 0:30:20]} Qd6 {
[%emt 0:31:15]} 42. Qc2 {[%emt 0:01:02]} Kf8 {[%emt 0:04:55]} 43. Ng3 {[%emt 0:
00:00]} Ke7 {[%emt 0:00:00]} 44. h4 {[%emt 0:00:00]} Qe5 {[%emt 0:00:00]} 45.
h5 {[%emt 0:00:00]} f5 {[%emt 0:00:00]} 46. Qc6 {[%emt 0:00:00]} gxh5 {[%emt 0:
00:00]} 47. Bc2 {[%emt 0:00:00]} f4 {[%emt 0:00:00]} 48. Nf5+ {[%emt 0:00:00]}
Kf6 {[%emt 0:00:00]} 49. Qd7 {[%emt 0:00:00]} Qa1+ {[%emt 0:00:00]} 50. Kh2 {
[%emt 0:00:00]} fxe3 {[%emt 0:00:00]} 51. Qe7+ {[%emt 0:00:00]} Ke5 {[%emt 0:
00:00]} 52. Nxe3 {[%emt 0:00:00]} b5 {[%emt 0:00:00]} 53. a4 {[%emt 0:00:00]}
Qd4 {[%emt 0:00:00]} 54. axb5 {[%emt 0:00:00]} axb5 {[%emt 0:00:00]} 55. Bxh7 {
[%emt 0:00:00]} Qf4+ {[%emt 0:00:00]} 56. Kg1 {[%emt 0:00:00]} Nd5 {[%emt 0:00:
00]} 57. Nxd5 {[%emt 0:00:00]} Kxd5 {[%emt 0:00:51]} 58. Qd7+ {[%emt 0:00:00]}
Ke5 {[%emt 0:00:39]} 59. Qxb5+ {[%emt 0:00:00]} Kf6 {[%emt 0:00:17]} 60. Bd3 {
[%emt 0:01:18]} h4 {[%emt 0:02:31]} 61. Qc4 {[%emt 0:01:19]} Nd4 {[%emt 0:00:
00]} 62. Qa6+ {[%emt 0:00:44]} Ke7 {[%emt 0:00:38]} 63. Qa7+ {[%emt 0:00:46]}
Kd8 {[%emt 0:01:14]} 64. Qb6+ {[%emt 0:00:28]} Ke7 {[%emt 0:00:38]} 65. Qb7+ {
[%emt 0:00:08]} Kd8 {[%emt 0:00:22]} 66. Qe4 {[%emt 0:00:30]} Qf6 {[%emt 0:00:
00]} 67. Qg4 {[%emt 0:03:33]} Kc7 {[%emt 0:00:36]} 68. Qg8 {[%emt 0:02:34]} Qe5
{[%emt 0:01:49]} 69. Qh7+ {[%emt 0:01:16]} Kb8 {[%emt 0:00:41]} 70. Qxh4 {
[%emt 0:00:35]} Qe1+ {[%emt 0:00:14]} 71. Kh2 {[%emt 0:00:05]} Qxb4 {[%emt 0:
00:00]} 72. Qd8+ {[%emt 0:00:18]} Ka7 {[%emt 0:00:24]} 73. Qc7+ {[%emt 0:00:48]
} Qb7 {[%emt 0:00:31]} 74. Qa5+ {[%emt 0:00:00]} Kb8 {[%emt 0:00:20]} 75. Qd8+
{[%emt 0:00:00]} 1-0